Cogmind - Beta 17 @@@ ROGUE MODE // 2026.07.11 @ 16:28:02 Player: Cinder Result: Destroyed by S-27 Virus with Autogun Performance ------------- Evolutions (6) 3000 Regions Visited (20) 4000 Robots Destroyed (140) 700 Value Destroyed (5507) 5507 Prototype IDs (43) 860 Alien Tech Used (2) 400 Bonus (10779) 10779 TOTAL SCORE: 25246 Bonus ------- High Alert Combat Kills 287 Follower Combat Kills 422 Prayed to X0-1V1 5000 Major X0-1V1 Interference 3800 Entered Garrisons 200 Used RIF Installer 500 Aligned with FarCom 300 Met Zhirov 300 Friendly Fire -30 Cogmind --------- Core Integrity 0/845 Matter 300/300 Energy 900/900 System Corruption 0% Temperature Cool (-666) Movement Core (50) Location -4/Upper Caves Parts ------- > --- POWER (2) -------- (None) > --- PROPULSION (3) --- Armored Medium Treads > --- UTILITY (9) ------ Improved Targeting Computer Advanced Reaction Control System Improved System Guard > --- WEAPON (5) ------- (None) > --- INVENTORY (5) ---- Light Antimatter Reactor Spiked Medium Treads Huge Storage Unit Small Matter Pod (50) Peak State ------------ > --- POWER ------------ Light Angular Momentum Engine Fusion Reactor > --- PROPULSION ------- Improved Carbon-fiber Leg Flexi-carbon Leg Advanced Myomer Leg > --- UTILITY ---------- Improved Heat Sink Lightpack 2.0 Precision Matter Filter Makeshift Medium Armor Plating High-powered Tractor Beam X0-1V1's Piety Tracker > --- WEAPON ----------- Heavy Machine Gun Improved Light Cannon Magnetic Acceleration Cannon > --- INVENTORY -------- Neutrino Core Armored Medium Treads Heavy Treads Aluminum Leg Carbon-fiber Leg Flexi-carbon Leg Flexi-carbon Leg Flexi-carbon Leg Advanced Myomer Leg Advanced Myomer Leg Wheel Compact Wheel Makeshift Heat Sink Improved Cooling System Gravity Neutralizer Hardened Medium Armor Plating Improved Medium Armor Plating Long-range Tractor Beam Transdimensional Reconstructor Heavy EM Shotgun Particle Gun Particle Gun Plasma Cannon Cooled Particle Cannon Cooled Particle Cannon Heavy Assault Rifle Heavy Assault Rifle Gauss Rifle Improved Datajack CR-A16's Pointy Stick Dirty Bomb Trap Fire Trap [Rating: 116] Favorites ----------- Power Ion Engine Engine Ion Engine Power Core Light Nuclear Core Reactor Fusion Reactor Propulsion Improved Treads Treads Improved Treads Leg Carbon-fiber Leg Wheel Wheel Utility X0-1V1's Piety Tracker Device X0-1V1's Piety Tracker Storage Lightpack 2.0 Processor Improved Targeting Computer Hackware Makeshift System Shield Protection Improved Medium Armor Plating Weapon Heavy Machine Gun Energy Gun Field Laser Energy Cannon Plasma Cannon Ballistic Gun Heavy Machine Gun Ballistic Cannon Flak Cannon Launcher Rocket Launcher Impact Weapon Makeshift Hammer Piercing Weapon CR-A16's Pointy Stick Build | -11 -10 -10 -10 -9 -8 -8 -7 -6 -6 -6 -6 -5 -5 -5 -5 -5 -4 -4 -4 -4 ------- Run | Yrd Mat Min Exi Min Mat Gar Fac Fac Low Low Zio Pro Fac Upp Upp Zhi Pro Fac Upp Upp Slots Evolved 12 | . . . . . 4 . 2 2 . . . . 2 . . . . 2 . . Power . | . . . . . . . . . . . . . . . . . . . . . Propulsion 2 | . . . . . . . . . . . . . 1 . . . . 1 . . Utility 8 | . . . . . 3 . 2 2 . . . . . . . . . 1 . . Weapon 2 | . . . . . 1 . . . . . . . 1 . . . . . . . Parts Attached 122 | 6 14 1 . 1 3 7 13 7 4 . . 8 5 2 3 4 7 25 7 5 Power 15 | 1 2 . . . . . 3 1 . . . 1 1 1 . 1 1 2 1 . Engine 10 | 1 2 . . . . . 1 1 . . . 1 1 1 . . . 2 . . Core 3 | . . . . . . . 2 . . . . . . . . . 1 . . . Reactor 2 | . . . . . . . . . . . . . . . . 1 . . 1 . Propulsion 30 | 2 6 . . . . 1 2 . 3 . . 2 1 1 1 1 1 7 . 2 Treads 9 | 2 2 . . . . 1 . . . . . . . . . . . 2 . 2 Leg 12 | . 2 . . . . . . . . . . 2 1 1 1 1 1 3 . . Wheel 9 | . 2 . . . . . 2 . 3 . . . . . . . . 2 . . Hover . | . . . . . . . . . . . . . . . . . . . . . Flight . | . . . . . . . . . . . . . . . . . . . . . Utility 44 | 1 6 . . . 2 2 4 4 . . . 4 1 . 1 2 1 11 4 1 Device 26 | . 5 . . . 1 . 3 2 . . . 2 1 . . 1 . 7 3 1 Storage 4 | 1 1 . . . 1 . . . . . . . . . . . . 1 . . Processor 4 | . . . . . . . . . . . . 1 . . . . . 3 . . Hackware 1 | . . . . . . . . . . . . . . . . . . . 1 . Protection 9 | . . . . . . 2 1 2 . . . 1 . . 1 1 1 . . . Artifact . | . . . . . . . . . . . . . . . . . . . . . Weapon 33 | 2 . 1 . 1 1 4 4 2 1 . . 1 2 . 1 . 4 5 2 2 Energy Gun 4 | . . . . . . 2 1 . . . . . . . . . . . 1 . Energy Cannon 3 | . . . . . . . . . . . . . . . . . 1 2 . . Ballistic Gun 15 | 2 . . . 1 1 1 1 . . . . 1 2 . . . 3 2 . 1 Ballistic Cannon 7 | . . 1 . . . . 1 2 1 . . . . . 1 . . . . 1 Launcher 2 | . . . . . . 1 1 . . . . . . . . . . . . . Special Weapon . | . . . . . . . . . . . . . . . . . . . . . Impact Weapon 1 | . . . . . . . . . . . . . . . . . . . 1 . Slashing Weapon . | . . . . . . . . . . . . . . . . . . . . . Piercing Weapon 1 | . . . . . . . . . . . . . . . . . . 1 . . Special Melee Weapon . | . . . . . . . . . . . . . . . . . . . . . Unidentified Prototypes 9 | . 1 . . . . 2 2 . . . . . . . . 3 1 . . . Parts Lost 86 | . 3 1 . . . 1 11 5 7 . . 6 . 2 5 . 8 26 2 9 Power 11 | . 1 . . . . . 2 . . . . 1 . 1 1 . 2 3 . . Propulsion 20 | . 1 . . . . 1 3 . 3 . . 2 . 1 . . . 5 . 4 Utility 29 | . 1 . . . . . 2 2 4 . . 2 . . 1 . 2 11 1 3 Weapon 26 | . . 1 . . . . 4 3 . . . 1 . . 3 . 4 7 1 2 Highest Loss Streak 14 | . 2 1 . . . 1 6 5 5 . . 5 . 2 3 . 4 14 2 6 To Critical Strikes 4 | . . . . . . . . . . . . 1 . . . . 1 2 . . Average Backups 21 | 1 12 19 18 16 16 20 32 31 26 26 26 25 23 26 27 27 24 8 5 5 Power 1 | . 1 2 1 1 1 2 3 2 2 3 2 1 1 1 1 1 . . 1 1 Propulsion 5 | . 2 5 5 5 5 3 6 6 5 5 5 4 5 9 8 9 11 4 . 1 Utility 6 | . 4 8 7 8 7 9 10 10 8 6 5 3 3 3 5 6 5 1 1 1 Weapon 8 | . 3 4 4 2 2 5 12 13 10 11 13 14 12 11 10 9 5 1 1 1 Tool/Special . | . . . . . . . . . . . . . . . . . . . . . Unused Backups 57 | . 11 2 3 . . 1 6 3 1 1 1 . 4 2 3 7 1 8 . 3 Power 4 | . 1 . . . . . 2 . . . . . . . . . . . . 1 Propulsion 18 | . 2 . . . . 1 . 1 . . . . 2 1 . 2 1 7 . 1 Utility 13 | . 1 1 1 . . . . . . 1 1 . 1 . 2 3 . 1 . 1 Weapon 20 | . 6 1 2 . . . 3 2 1 . . . 1 1 1 2 . . . . Tool/Special 2 | . 1 . . . . . 1 . . . . . . . . . . . . . Average Slot Usage (%) 79 | . 92 99 77 99 74 80 70 73 68 70 73 76 85 87 79 78 79 62 69 65 Engine 7 | . 12 14 14 14 9 9 6 2 6 6 6 5 6 10 7 5 2 4 . . Treads 8 | . 19 28 28 28 18 17 11 . . . . . . . . . . 4 . 3 Leg 5 | . 2 . . . . . . . . . . 4 16 17 17 17 17 9 5 2 Wheel 3 | . 3 . . . . . 1 13 12 13 13 7 . . . . . . 10 8 Device 15 | . 11 14 14 14 11 11 14 22 12 13 13 16 20 23 23 21 17 16 17 17 Storage 7 | . 14 14 14 14 9 9 7 6 6 6 6 6 5 5 5 5 5 2 2 2 Processor 1 | . . . . . . . . . . . . 4 1 . . . . 5 15 14 Protection 3 | . . . . . . 6 . 5 9 6 6 5 5 5 5 6 7 1 . . Energy Gun 1 | . . . . . . 8 5 3 . . . . . 1 . . 1 . . . Ballistic Gun 12 | . 28 14 3 13 17 10 11 3 . 3 6 11 20 17 10 5 14 7 2 . Ballistic Cannon 6 | . . 13 3 14 9 5 6 8 19 20 20 12 4 3 6 11 . . . . Peak Build Rating 116 | 6 24 24 24 27 58 66 83 86 77 79 79 91 101 102 102 116 115 115 88 84 Average Rating 67 | 5 9 23 22 26 54 61 77 78 72 76 78 83 99 101 99 104 106 77 75 70 On Entrance 64 | . 6 24 23 24 27 58 63 78 72 73 79 78 87 101 102 100 111 103 57 84 Avg Prop Armor Cover (%) 14 | . . . . . . . . . . . . . . . . . . 11 6 26 Naked Turns . | . . . . . . . . . . . . . . . . . . . . . Heaviest Build 112 | 10 49 50 50 50 17 28 36 40 46 46 46 58 64 64 64 62 66 112 108 102 Greatest Support 140 | 40 46 46 46 46 46 46 46 20 22 22 22 33 48 53 58 68 68 140 32 32 Greatest Overweight (x) 4 | 1 4 1 1 1 . . 1 1 3 2 2 2 1 1 1 1 . 2 3 3 Average Overweight (x) . | . 1 1 . 1 . . . 1 1 1 2 1 1 1 . . . . 1 1 Largest Inventory Capacity 40 | 8 20 20 20 20 40 40 40 40 40 40 40 40 40 40 40 40 40 40 25 25 Average Capacity 32 | 7 19 20 20 20 40 40 40 40 40 40 40 40 40 40 40 40 40 17 14 15 Most Carried 38 | 2 20 20 20 20 20 25 38 34 37 34 34 34 34 35 32 33 29 24 7 7 Average Carried 24 | 1 12 19 19 19 17 21 32 31 31 33 33 32 29 32 30 29 26 8 5 5 Final Capacity 40 | 8 20 20 20 20 40 40 40 40 40 40 40 40 40 40 40 40 40 5 25 5 Final Carried 35 | 2 20 20 20 20 20 24 35 29 32 34 33 31 34 28 30 29 25 4 7 4 Scrap Suit Usage (%) 1 | . . . . . . . 5 . . . . . . . . . . . . . Parts Cannibalized 1 | . . . . . . . 1 . . . . . . . . . . . . . Class Distribution -------------------- 34% | Hauler-Tank 26% | Mutant 26% | Hauler-Skirmisher 3% | Scavenger-Mutant Dominant Class ---------------- Mutant | -10/Materials Mutant | -10/Mines Mutant | -10/Exiles Mutant | -9/Mines Hauler-Skirmisher | -8/Materials Hauler-Skirmisher | -8/Garrison Hauler-Skirmisher | -7/Factory Hauler-Skirmisher | -6/Factory Hauler-Tank | -6/Lower Caves Hauler-Tank | -6/Lower Caves Hauler-Tank | -6/Zion Hauler-Tank | -5/Proximity Caves Hauler-Skirmisher | -5/Factory Hauler-Tank | -5/Upper Caves Hauler-Tank | -5/Upper Caves Hauler-Tank | -5/Zhirov Hauler-Tank | -4/Proximity Caves Scavenger-Gunner | -4/Factory Scavenger-Mutant | -4/Upper Caves Scavenger-Mutant | -4/Upper Caves Resources | -11 -10 -10 -10 -9 -8 -8 -7 -6 -6 -6 -6 -5 -5 -5 -5 -5 -4 -4 -4 -4 ----------- Run | Yrd Mat Min Exi Min Mat Gar Fac Fac Low Low Zio Pro Fac Upp Upp Zhi Pro Fac Upp Upp Matter Collected 6782 | 226 286 50 . 56 37 305 853 788 633 159 . 601 498 700 516 . 585 337 101 51 Remotely 3123 | . 17 . . . . . . 506 90 . . . 458 700 516 . 585 251 . . Salvage Created 4662 | 25 383 42 . . 33 329 732 400 100 . . 390 458 263 237 . 573 523 157 17 Parts 227 | 1 28 9 . 1 3 25 44 18 4 . . 13 17 9 12 . 15 21 5 2 Haulers Intercepted 3 | . 1 . . . . . 2 . . . . . . . . . . . . . Recyclers Shooed 1 | . . . . . . . . . . . . . 1 . . . . . . . Parts Field Recycled . | . . . . . . . . . . . . . . . . . . . . . Retrieved Matter . | . . . . . . . . . . . . . . . . . . . . . Parts Self-Destructed 65 | . . . . . . . . . 7 . . 23 . 6 11 . 12 . 4 2 Prevented 14 | . . . . . . . . . 5 . . 5 . 2 . . 2 . . . Parts Restored . | . . . . . . . . . . . . . . . . . . . . . Kills | -11 -10 -10 -10 -9 -8 -8 -7 -6 -6 -6 -6 -5 -5 -5 -5 -5 -4 -4 -4 -4 ------- Run | Yrd Mat Min Exi Min Mat Gar Fac Fac Low Low Zio Pro Fac Upp Upp Zhi Pro Fac Upp Upp Combat Hostiles Destroyed 112 | . 9 3 . . 1 14 18 10 6 . . 15 6 3 6 . 9 8 3 1 Melee 3 | . . . . . . . . . . . . . . . . . . . 3 . Guns 43 | . 9 1 . . . 4 7 3 . . . 4 4 1 2 . 6 1 . 1 Cannons 35 | . . 2 . . 1 3 3 2 5 . . 6 2 2 3 . 1 5 . . AOE 28 | . . . . . . 7 8 5 1 . . 5 . . . . 2 . . . Classes Destroyed 19 | 1 6 . . . . 4 2 1 2 1 . . . 1 . . . 1 . . Worker 11 | . 1 . . 1 . . 2 2 . . . . 2 . . . . 3 . . Builder 5 | . 1 . . . . . 2 2 . . . . . . . . . . . . Tunneler 3 | 2 . 1 . . . . . . . . . . . . . . . . . . Hauler 3 | . 1 . . . . . 2 . . . . . . . . . . . . . Recycler 3 | . . . . . . . 1 . . . . . 2 . . . . . . . Minesweeper 1 | . . . . . . . . . 1 . . . . . . . . . . . Drone 1 | . . . . . . . . . . . . . . . . . . 1 . . Watcher 2 | . 1 . . . . . . 1 . . . . . . . . . . . . Swarmer 26 | . 3 3 . . . 2 3 . 1 . . 6 5 . 2 . . . 1 . Saboteur 4 | . . . . . . 3 . . . . . . . . . . . . . 1 Grunt 50 | . 6 . . . 1 7 10 7 4 . . 4 1 2 . . 6 . 2 . Brawler 1 | . . . . . . 1 . . . . . . . . . . . . . . Duelist 5 | . . . . . . . . . 1 . . 3 . . . . 1 . . . Sentry 9 | . . . . . . 1 3 1 . . . 1 . . 1 . . 2 . . Specialist 2 | . . . . . . . . 2 . . . . . . . . . . . . Hunter 9 | . . . . . . . 1 . . . . 1 . . 2 . 2 3 . . Programmer 6 | . . . . . . 1 1 . . . . . . 1 1 . . 2 . . Samaritan 2 | . . . . . . . . . . . . . . 2 . . . . . . Tinkerer 1 | . . . . . . . . . . 1 . . . . . . . . . . Best Kill Streak 9 | 1 3 3 . 1 1 5 4 9 3 . . 7 3 1 2 . 3 4 2 1 Combat Bots Only 7 | . 3 3 . . 1 5 4 6 3 . . 7 3 1 2 . 3 3 2 1 Max Kills in Single Turn 3 | 1 1 1 . 1 1 3 2 3 1 1 . 3 1 1 2 . 1 2 1 1 Gunslinging . | . . . . . . . . . . . . . . . . . . . . . Exploded 2 | . . . . . . 2 2 2 1 . . 2 . . . . 1 . . . Melee 1 | . . . . . . . . . . . . . . . . . . . 1 . Uniques/NPCs Destroyed . | . . . . . . . . . . . . . . . . . . . . . Combat | -11 -10 -10 -10 -9 -8 -8 -7 -6 -6 -6 -6 -5 -5 -5 -5 -5 -4 -4 -4 -4 -------- Run | Yrd Mat Min Exi Min Mat Gar Fac Fac Low Low Zio Pro Fac Upp Upp Zhi Pro Fac Upp Upp Hostile Shots Fired 1372 | . 64 13 . . 5 63 250 92 66 . 21 74 32 33 34 3 126 337 31 128 Missed 460 | . 16 3 . . 2 21 91 41 20 . 10 18 11 9 11 . 46 100 7 54 Hits 912 | . 48 10 . . 3 42 159 51 46 . 11 56 21 24 23 3 80 237 24 74 Melee 34 | . . . . . . . . . 2 . . . . . . . 3 29 . . Projectile 878 | . 48 10 . . 3 42 159 51 44 . 11 56 21 24 23 3 77 208 24 74 Critical Strikes 34 | . 1 . . . . 3 3 1 2 . 1 6 . 3 . . 5 8 . 1 Part Disruptions 1 | . . . . . . . . . . . . . . 1 . . . . . . Damage Taken 13957 | . 578 82 . . 54 828 1868 698 763 . 120 755 209 619 421 125 1417 3699 454 1267 Core 1725 | . 95 . . . . 64 295 29 67 . . 59 19 55 . . 54 577 124 287 Absorbed by Shields 554 | . 25 . . . . . . 126 160 . 44 199 . . . . . . . . Reduced by Siege Mode 105 | . . . . . . . . . . . . . . . . . . 105 . . Redirected to Shielding 16 | . . . . . . . 16 . . . . . . . . . . . . . Ignored by Resistances 228 | . . . . . . . . . . . . 121 107 . . . . . . . Regen/Repaired (Parts) 10 | . . . . . . . 10 . . . . . . . . . . . . . Core Remaining (%) 83 | 100 . . . 76 . 88 83 . . . . 76 . . . . 75 . . . Volleys Fired 353 | 4 52 7 . . 2 36 50 20 18 3 . 23 26 18 14 1 32 46 . 1 Largest 5 | 2 2 2 . . 3 3 4 4 3 4 . 4 5 4 4 1 4 4 . 3 Hottest 177 | 40 40 50 . . 70 121 156 177 112 140 . 146 155 130 130 44 161 161 . 133 Shots Fired 949 | 8 104 14 . . 6 105 105 51 54 12 . 84 87 52 44 1 119 99 1 3 Gun 588 | 8 104 10 . . 4 71 57 26 . 3 . 37 74 40 34 . 90 27 1 2 Cannon 323 | . . 4 . . 2 21 35 20 51 9 . 43 13 12 10 1 29 72 . 1 Launcher 38 | . . . . . . 13 13 5 3 . . 4 . . . . . . . . Special . | . . . . . . . . . . . . . . . . . . . . . Kinetic 733 | 8 104 14 . . 6 57 62 35 51 12 . 80 83 46 44 1 100 27 1 2 Thermal 161 | . . . . . . 35 30 11 . . . . . . . . 13 72 . . Explosive 38 | . . . . . . 13 13 5 3 . . 4 . . . . . . . . Electromagnetic 17 | . . . . . . . . . . . . . 4 6 . . 6 . . 1 Robot Hit Streak 15 | 2 12 3 . . 2 10 9 14 8 4 . 10 9 15 12 4 9 14 . 4 Robot Miss Streak 10 | 3 3 2 . . 1 4 3 1 10 4 . 5 8 5 3 . 7 6 . 1 Penetration Max 1 | . . . . . . . . . . . . . . . . . 1 1 . . Secondary Targets 2 | . 1 . . . . . . . . . . . . . . . 1 . . . Max Gunslinging Chain 1 | . 1 . . . . . . . . . . . . . . . 1 . . . Shots Hit Robots 576 | 4 70 7 . . 4 62 48 39 32 7 . 54 38 31 31 1 72 66 8 2 Core Hits 336 | 3 31 5 . 1 2 30 51 36 22 5 . 46 20 19 10 1 29 19 4 2 Critical Kills 5 | . 1 . . . . . . . . . . . . . . . 2 2 . . Critical Parts Destroyed 9 | . 1 1 . . . . . . . . . . 4 . 1 . 2 . . . Critical Strikes 28 | . 2 1 . . . 4 7 . . . . 1 4 . 2 . 5 2 . . Burn 4 | . . . . . . 2 2 . . . . . . . . . . . . . Meltdown 1 | . . . . . . . . . . . . . . . . . . 1 . . Destroy 13 | . 2 1 . . . . . . . . . . 4 . 1 . 4 1 . . Blast 9 | . . . . . . 2 5 . . . . 1 . . . . 1 . . . Sunder 1 | . . . . . . . . . . . . . . . 1 . . . . . Melee Attacks 15 | . . . . . . . . . . . . . . . . . . 1 14 . Impact 3 | . . . . . . . . . . . . . . . . . . . 3 . Slashing . | . . . . . . . . . . . . . . . . . . . . . Piercing 12 | . . . . . . . . . . . . . . . . . . 1 11 . Sneak Attacks . | . . . . . . . . . . . . . . . . . . . . . Combat Hostiles . | . . . . . . . . . . . . . . . . . . . . . Follow-up Attacks 3 | . . . . . . . . . . . . . . . . . . . 3 . Damage Inflicted 15544 | 48 602 108 . 10 51 1386 2417 2086 1087 148 97 1807 619 773 827 29 1414 1704 282 49 Guns 5614 | 35 564 52 . . 15 627 612 456 . 49 . 466 540 407 475 . 976 318 . 22 Cannons 5164 | . . 56 . . 36 269 516 411 630 99 97 539 79 282 352 29 383 1386 . . Explosions 4297 | . . . . . . 485 1225 1198 448 . . 802 . 84 . . 55 . . . Melee 282 | . . . . . . . . . . . . . . . . . . . 282 . Ramming 187 | 13 38 . . 10 . 5 64 21 9 . . . . . . . . . . 27 Kinetic 7649 | 35 564 108 . . 51 508 848 660 630 148 . 1005 538 459 651 29 1085 318 . 12 Thermal 2683 | . . . . . . 388 463 207 . . . . . . . . 239 1386 . . Explosive 3859 | . . . . . . 485 926 1198 448 . . 802 . . . . . . . . Electromagnetic 521 | . . . . . . . 116 . . . . . 81 224 . . 90 . . 10 Impact 48 | . . . . . . . . . . . . . . . . . . . 48 . Slashing . | . . . . . . . . . . . . . . . . . . . . . Piercing 234 | . . . . . . . . . . . . . . . . . . . 234 . Entropic 176 | . . . . . . . . . . . . . . . 176 . . . . . Phasic 187 | . . . . . . . . . . . 97 . . 90 . . . . . . Highest Corruption 6 | . 4 4 4 4 . 1 4 1 3 . . . . 5 6 . . 2 . . Average Corruption 3 | . 3 4 4 4 . 1 3 1 2 . . . . 3 5 . . 1 . . Corruption Purged . | . . . . . . . . . . . . . . . . . . . . . Corruption Blocked . | . . . . . . . . . . . . . . . . . . . . . Effects 84 | . 13 10 5 7 . 1 9 . 8 . . . . 15 13 . . 3 . . Message Errors 14 | . 3 2 1 1 . . 2 . 1 . . . . 2 2 . . . . . Matter Fused 28 | . 8 4 2 2 . 1 4 . 2 . . . . 3 2 . . . . . Heat Flow Errors 9 | . . . 1 . . . 1 . 2 . . . . 1 3 . . 1 . . Energy Discharges 12 | . . 3 1 2 . . . . 2 . . . . 2 2 . . . . . Parts Fused 1 | . . . . . . . 1 . . . . . . . . . . . . . Data Loss (minor) 12 | . 2 . . 1 . . 1 . 1 . . . . 5 2 . . . . . Data Loss (major) 3 | . . . . . . . . . . . . . . 1 . . . 2 . . Misfires 2 | . . 1 . . . . . . . . . . . . 1 . . . . . Alerts 2 | . . . . 1 . . . . . . . . . . 1 . . . . . Weapon Failures 1 | . . . . . . . . . . . . . . 1 . . . . . . Overload Shots . | . . . . . . . . . . . . . . . . . . . . . Overflow Damage 341 | . . . . . . 36 104 12 58 . . 57 . . 20 . . 54 . . Projectiles 116 | . . . . . . . 3 1 26 . . 12 . . 20 . . 54 . . Explosions 219 | . . . . . . 36 101 11 26 . . 45 . . . . . . . . Melee 6 | . . . . . . . . . 6 . . . . . . . . . . . Knockbacks 59 | . . . . 1 . 3 4 6 8 . . 19 8 6 1 . 3 . . . Impact 1 | . . . . 1 . . . . . . . . . . . . . . . . Kinetic 56 | . . . . . . 3 4 5 8 . . 18 8 6 1 . 3 . . . Secondary 2 | . . . . . . . . 1 . . . 1 . . . . . . . . Self-Inflicted Damage 656 | . . . . . . 165 221 110 4 . . 85 . 37 . . 22 . . 12 Shots 16 | . . . . . . 4 5 2 . . . 3 . 1 . . 1 . . . Rammed 43 | 7 8 . . 2 . 3 14 1 1 . . . . . . . . . . 7 Targets Rammed 48 | 8 10 . . 3 . 3 15 1 1 . . . . . . . . . . 7 Kicked . | . . . . . . . . . . . . . . . . . . . . . Crushed 5 | 1 2 . . 1 . . 1 . . . . . . . . . . . . . Highest Temperature 320 | . 33 10 202 . 18 320 266 96 195 18 . 52 . 27 319 . 57 149 . . Average Temperature 57 | . 10 7 108 . 13 91 76 22 43 9 . 20 . 27 128 . 20 41 . . Received Heat Transfer 2726 | . 328 . . . 27 369 576 200 236 . . 137 . 105 36 18 247 189 138 120 Effects 1 | . . . . . . 1 . . . . . . . . . . . . . . Energy Bleed 1 | . . . . . . 1 . . . . . . . . . . . . . . Siege Activations 3 | . . . . . . . . . . . . . . . . . . 3 . . Total Turns 49 | . . . . . . . . . . . . . . . . . . 49 . . Longest Duration 31 | . . . . . . . . . . . . . . . . . . 31 . . Martial Activations . | . . . . . . . . . . . . . . . . . . . . . Shielding Activations . | . . . . . . . . . . . . . . . . . . . . . Robots Disrupted . | . . . . . . . . . . . . . . . . . . . . . Combat Hostiles . | . . . . . . . . . . . . . . . . . . . . . Robots Corrupted . | . . . . . . . . . . . . . . . . . . . . . Combat Hostiles . | . . . . . . . . . . . . . . . . . . . . . Parts Fried 5 | . . . . . . . . . . . . . . 3 . . 2 . . . Impact Corruptions 1 | . . . . . . . . . 1 . . . . . . . . . . . Robots Melted 2 | . . . . . . . . . . . . . . . . . . 2 . . Combat Hostiles 2 | . . . . . . . . . . . . . . . . . . 2 . . Parts Melted 13 | . . . . . . . . . . . . . . . . . 1 12 . . Heat Transferred 4654 | . . . . . . 962 903 333 . . . . . . . . 400 2056 . . Parts Sabotaged . | . . . . . . . . . . . . . . . . . . . . . Parts Stolen 2 | . . . . . . . . . . . . . . . . . . 2 . . Parts Stripped . | . . . . . . . . . . . . . . . . . . . . . Power Chain Reactions 6 | . . . . . . . 2 1 . . . . . 2 . . 1 . . . Alert | -11 -10 -10 -10 -9 -8 -8 -7 -6 -6 -6 -6 -5 -5 -5 -5 -5 -4 -4 -4 -4 ------- Run | Yrd Mat Min Exi Min Mat Gar Fac Fac Low Low Zio Pro Fac Upp Upp Zhi Pro Fac Upp Upp Maximum Alert Level 3 | . . . . . . 1 3 3 . . . . . . . . . . . . Low Security (%) 71 | 100 100 100 . 100 100 69 19 . . . . . 100 . . . . 100 . . Level 1 8 | . . . . . . 30 16 19 . . . . . . . . . . . . Level 2 16 | . . . . . . . 56 58 . . . . . . . . . . . . Level 3 2 | . . . . . . . 7 21 . . . . . . . . . . . . Level 4 . | . . . . . . . . . . . . . . . . . . . . . Level 5 . | . . . . . . . . . . . . . . . . . . . . . High Security . | . . . . . . . . . . . . . . . . . . . . . Max Security . | . . . . . . . . . . . . . . . . . . . . . Peak Influence 809 | 5 85 60 . . 20 374 809 742 . . . . 132 . . . . 57 . . Initial 389 | . . . . . . . 196 389 . . . . 42 . . . . 28 . . Average 164 | . 14 9 . . 3 140 447 561 . . . . 66 . . . . 15 . . Influence Increases 4479 | 10 304 75 . 5 20 484 1309 503 240 . . 376 238 80 140 . 270 215 70 140 Destroy 0b10 Robot/C 2500 | . 180 60 . . 20 360 480 200 140 . . 340 120 60 120 . 180 160 60 20 Destroy 0b10 Robot/NC 140 | 10 20 5 . 5 . . 35 25 5 . . . 20 . . . . 15 . . Destroy Leader 410 | . 54 10 . . . 20 114 52 20 . . 30 10 20 20 . 30 20 10 . Allied During Kill 63 | . . . . . . 29 28 . . . . 6 . . . . . . . . Trap Triggered on 0b10 10 | . . . . . . . . . . . . . 10 . . . . . . . Successful Hack 54 | . 20 . . . . . . 18 . . . . 14 . . . . 2 . . Select Force Hacks 100 | . . . . . . . 50 50 . . . . . . . . . . . . Disable Machine 375 | . . . . . . . 345 15 . . . . 15 . . . . . . . Destroy Structure 245 | . . . . . . 60 110 53 . . . . 4 . . . . 18 . . Lose Combat Pursuer 450 | . 30 . . . . 15 15 90 75 . . . 45 . . . 60 . . 120 Miscellaneous 132 | . . . . . . . 132 . . . . . . . . . . . . . Influence Decreases 4449 | 10 304 75 . 5 20 110 886 578 636 326 . 308 236 146 144 . 224 261 50 130 Entered New Map 993 | . . . . . . . 178 408 268 63 . . 26 26 2 . . 18 . 4 Time Decay 2662 | 10 274 65 . 5 20 . 538 120 278 243 . 208 210 110 122 . 174 169 50 66 Lost Part 554 | . 30 10 . . . 10 110 50 70 . . 60 . 10 20 . 50 74 . 60 Lost Ally 240 | . . . . . . 100 60 . 20 20 . 40 . . . . . . . . Squads Dispatched 25 | . 1 . . . . . 9 6 . . . 1 1 . . . 2 4 . 1 Investigation 8 | . 1 . . . . . 3 2 . . . . . . . . . 2 . . Extermination 4 | . . . . . . . 3 . . . . . . . . . . 1 . . Reinforcement 7 | . . . . . . . 3 2 . . . . 1 . . . . 1 . . Assault 4 | . . . . . . . . . . . . 1 . . . . 2 . . 1 Garrison 2 | . . . . . . . . 2 . . . . . . . . . . . . Intercept . | . . . . . . . . . . . . . . . . . . . . . Searches Triggered . | . . . . . . . . . . . . . . . . . . . . . Construction Impeded 3 | . . . . . . . 2 1 . . . . . . . . . . . . Haulers Reinforced 1 | . . . . . . . 1 . . . . . . . . . . . . . Active Scanning Responses . | . . . . . . . . . . . . . . . . . . . . . Cargo Convoy Interrupts . | . . . . . . . . . . . . . . . . . . . . . Stealth | -11 -10 -10 -10 -9 -8 -8 -7 -6 -6 -6 -6 -5 -5 -5 -5 -5 -4 -4 -4 -4 --------- Run | Yrd Mat Min Exi Min Mat Gar Fac Fac Low Low Zio Pro Fac Upp Upp Zhi Pro Fac Upp Upp Distress Signals 3 | . 1 . . . . . . 1 . . . . 1 . . . . . . . Communications Jammed . | . . . . . . . . . . . . . . . . . . . . . Distress Signals . | . . . . . . . . . . . . . . . . . . . . . Times Spotted 216 | . 22 2 . . 2 20 26 21 13 . 5 15 12 7 6 3 19 16 6 21 Peak Tracking Total 12 | . 5 2 . . 1 6 5 6 7 . 4 7 5 4 3 3 5 5 3 12 Tactical Retreats 19 | . 2 . . . . 1 1 3 5 . 1 . 1 . . . 2 . . 3 Traps | -11 -10 -10 -10 -9 -8 -8 -7 -6 -6 -6 -6 -5 -5 -5 -5 -5 -4 -4 -4 -4 ------- Run | Yrd Mat Min Exi Min Mat Gar Fac Fac Low Low Zio Pro Fac Upp Upp Zhi Pro Fac Upp Upp Traps Triggered 4 | . 4 . . . . . . . . . . . . . . . . . . . Indirectly . | . . . . . . . . . . . . . . . . . . . . . Trap Hack Attempts . | . . . . . . . . . . . . . . . . . . . . . Triggered . | . . . . . . . . . . . . . . . . . . . . . Disarmed . | . . . . . . . . . . . . . . . . . . . . . Reprogrammed . | . . . . . . . . . . . . . . . . . . . . . Reused 7 | . . . . . . . . . 2 . . . 1 1 1 . 2 . . . Traps Extracted . | . . . . . . . . . . . . . . . . . . . . . Installed 10 | . . . . . . . . . 3 . . . 1 3 1 . 2 . . . Triggered 7 | . . . . . . . . . 2 . . . 1 1 1 . 2 . . . Most Traps Carried 10 | . . . . . . . . . 10 7 7 7 7 7 3 2 2 . . . Machines | -11 -10 -10 -10 -9 -8 -8 -7 -6 -6 -6 -6 -5 -5 -5 -5 -5 -4 -4 -4 -4 ---------- Run | Yrd Mat Min Exi Min Mat Gar Fac Fac Low Low Zio Pro Fac Upp Upp Zhi Pro Fac Upp Upp Machines Disabled 27 | . . . . . . . 23 1 . 1 . 1 1 . . . . . . . Max in Single Turn 14 | . . . . . . . 14 1 . 1 . 1 1 . . . . . . . Garrison Access 3 | . . . . . . . 2 . . . . . 1 . . . . . . . Machines Repaired . | . . . . . . . . . . . . . . . . . . . . . Machines Dismantled . | . . . . . . . . . . . . . . . . . . . . . Machines Sabotaged . | . . . . . . . . . . . . . . . . . . . . . Overloaded Fab Kills 3 | . . . . . . . . 3 . . . . . . . . . . . . Hacking | -11 -10 -10 -10 -9 -8 -8 -7 -6 -6 -6 -6 -5 -5 -5 -5 -5 -4 -4 -4 -4 --------- Run | Yrd Mat Min Exi Min Mat Gar Fac Fac Low Low Zio Pro Fac Upp Upp Zhi Pro Fac Upp Upp Machines Accessed 33 | . 7 . 1 . 2 . 10 3 . . . . 2 . . 3 . 2 2 1 Terminals 14 | . 6 . . . 1 . 4 1 . . . . 1 . . . . 1 . . Fabricators 3 | . . . . . . . 1 1 . . . . . . . . . 1 . . Repair Stations . | . . . . . . . . . . . . . . . . . . . . . Recycling Units 3 | . 1 . . . . . 2 . . . . . . . . . . . . . Scanalyzers 2 | . . . . . . . 1 1 . . . . . . . . . . . . Garrison Access 4 | . . . . . 1 . 2 . . . . . 1 . . . . . . . Total Hacks 83 | . 19 . 1 . 2 . 21 6 . . . . 6 . . 13 . 6 8 1 Successful 51 | . 8 . 1 . 1 . 9 4 . . . . 3 . . 13 . 3 8 1 Failed 32 | . 11 . . . 1 . 12 2 . . . . 3 . . . . 3 . . Catastrophic 11 | . 3 . . . . . 5 . . . . . 2 . . . . 1 . . Database Lockouts . | . . . . . . . . . . . . . . . . . . . . . Manual 44 | . 20 . 1 . 1 . 13 1 . . . . 4 . . . . 4 . . Terminals 33 | . 17 . . . 1 . 7 2 . . . . 2 . . . . 4 . . Fabricators 4 | . . . . . . . 1 1 . . . . . . . . . 2 . . Repair Stations . | . . . . . . . . . . . . . . . . . . . . . Recycling Units 8 | . 2 . . . . . 6 . . . . . . . . . . . . . Scanalyzers 6 | . . . . . . . 3 3 . . . . . . . . . . . . Garrison Access 9 | . . . . . 1 . 4 . . . . . 4 . . . . . . . Terminal Hacks 26 | . 2 . 1 . . . . 1 . . . . . . . 13 . . 8 1 Record 8 | . . . . . . . . . . . . . . . . 1 . . 7 . Part Schematic 5 | . 1 . . . . . . . . . . . . . . 4 . . . . Robot Analysis 4 | . . . . . . . . . . . . . . . . 4 . . . . Prototype ID Bank 4 | . . . . . . . . . . . . . . . . 4 . . . . Open Door 2 | . . . . . . . . . . . . . . . . . . . 1 1 Branch Access Points 1 | . . . . . . . . 1 . . . . . . . . . . . . Registered Components 1 | . 1 . . . . . . . . . . . . . . . . . . . Proto ID Catalog 1 | . . . 1 . . . . . . . . . . . . . . . . . Fabricator Hacks 2 | . . . . . . . . . . . . . . . . . . 2 . . Load Schematic 1 | . . . . . . . . . . . . . . . . . . 1 . . Build 1 | . . . . . . . . . . . . . . . . . . 1 . . Repair Station Hacks . | . . . . . . . . . . . . . . . . . . . . . Recycling Unit Hacks . | . . . . . . . . . . . . . . . . . . . . . Scanalyzer 4 | . . . . . . . 2 2 . . . . . . . . . . . . Insert Component 1 | . . . . . . . . 1 . . . . . . . . . . . . Analyze 1 | . . . . . . . . 1 . . . . . . . . . . . . Retrieve Study 2 | . . . . . . . 2 . . . . . . . . . . . . . Garrison Access Hacks 6 | . . . . . 1 . 3 . . . . . 2 . . . . . . . Unlock Access 1 | . . . . . 1 . . . . . . . . . . . . . . . Seal Access 3 | . . . . . . . 2 . . . . . 1 . . . . . . . Coupler Status 2 | . . . . . . . 1 . . . . . 1 . . . . . . . Unauthorized Hacks 13 | . 6 . . . . . 4 1 . . . . 1 . . . . 1 . . Terminals 7 | . 5 . . . . . . . . . . . 1 . . . . 1 . . Botnet 7 | . 5 . . . . . . . . . . . 1 . . . . 1 . . Fabricators 2 | . . . . . . . 1 1 . . . . . . . . . . . . Overload 2 | . . . . . . . 1 1 . . . . . . . . . . . . Repair Stations . | . . . . . . . . . . . . . . . . . . . . . Recycling Units 4 | . 1 . . . . . 3 . . . . . . . . . . . . . Reject 3 | . 1 . . . . . 2 . . . . . . . . . . . . . Mask 1 | . . . . . . . 1 . . . . . . . . . . . . . Scanalyzers . | . . . . . . . . . . . . . . . . . . . . . Garrison Access . | . . . . . . . . . . . . . . . . . . . . . Data Cores Recovered . | . . . . . . . . . . . . . . . . . . . . . Used . | . . . . . . . . . . . . . . . . . . . . . Hacking Detections 21 | . 7 . . . 1 . 7 2 . . . . 2 . . . . 2 . . Full Trace Events 6 | . 1 . . . . . 2 1 . . . . . . . . . 2 . . Feedback Events . | . . . . . . . . . . . . . . . . . . . . . Feedback Blocked . | . . . . . . . . . . . . . . . . . . . . . Robot Schematics Acquired . | . . . . . . . . . . . . . . . . . . . . . Robots Built . | . . . . . . . . . . . . . . . . . . . . . Authchips . | . . . . . . . . . . . . . . . . . . . . . Time . | . . . . . . . . . . . . . . . . . . . . . Total Robot Build Rating . | . . . . . . . . . . . . . . . . . . . . . Part Schematics Acquired 6 | . 1 . . . . . . 1 . . . . . . . 4 . . . . Parts Built 1 | . . . . . . . . . . . . . . . . . . 1 . . Authchips . | . . . . . . . . . . . . . . . . . . . . . Time 51 | . . . . . . . . . . . . . . . . . . 51 . . Total Part Build Rating 1 | . . . . . . . . . . . . . . . . . . 1 . . Part Studies Acquired 2 | . . . . . . . 2 . . . . . . . . . . . . . Parts Repaired . | . . . . . . . . . . . . . . . . . . . . . Time . | . . . . . . . . . . . . . . . . . . . . . Parts Recycled . | . . . . . . . . . . . . . . . . . . . . . Recycled Matter . | . . . . . . . . . . . . . . . . . . . . . Retrieved Matter . | . . . . . . . . . . . . . . . . . . . . . Retrieved Components . | . . . . . . . . . . . . . . . . . . . . . Parts Scanalyzed 1 | . . . . . . . . 1 . . . . . . . . . . . . Part Schematics Acquired 1 | . . . . . . . . 1 . . . . . . . . . . . . Parts Damaged . | . . . . . . . . . . . . . . . . . . . . . Bothacking | -11 -10 -10 -10 -9 -8 -8 -7 -6 -6 -6 -6 -5 -5 -5 -5 -5 -4 -4 -4 -4 ------------ Run | Yrd Mat Min Exi Min Mat Gar Fac Fac Low Low Zio Pro Fac Upp Upp Zhi Pro Fac Upp Upp Used RIF Installer 1 | . . . . . . 1 . . . . . . . . . . . . . . Patrol Navigation 1 | . . . . . . . . . 1 . . . . . . . . . . . Robots Hacked . | . . . . . . . . . . . . . . . . . . . . . Non-combat . | . . . . . . . . . . . . . . . . . . . . . Combat . | . . . . . . . . . . . . . . . . . . . . . Robot Hacks Applied . | . . . . . . . . . . . . . . . . . . . . . Relay Couplers Released 2 | . . . . . . . 2 . . . . . . . . . . . . . Machine Destruction 2 | . . . . . . . 2 . . . . . . . . . . . . . Fabnet Peak Effective % . | . . . . . . . . . . . . . . . . . . . . . Robots Rewired 10 | . . . . . . 6 . . 2 . . 2 . . . . . . . . Allies Hacked 2 | . . . . . . . 2 . . . . . . . . . . . . . Hacks Repelled . | . . . . . . . . . . . . . . . . . . . . . Allies | -11 -10 -10 -10 -9 -8 -8 -7 -6 -6 -6 -6 -5 -5 -5 -5 -5 -4 -4 -4 -4 -------- Run | Yrd Mat Min Exi Min Mat Gar Fac Fac Low Low Zio Pro Fac Upp Upp Zhi Pro Fac Upp Upp Total Allies 15 | . . . . . . 6 5 . 2 . . 2 . . . . . . . . Largest Group 6 | . . . . . . 6 3 . 2 1 . 2 . . . . . . . . Highest-Rated Group 142 | . . . . . . 63 142 . 49 20 . 59 . . . . . . . . Highest-Rated Ally 142 | . . . . . . 16 142 . 29 20 . 30 . . . . . . . . Total Orders . | . . . . . . . . . . . . . . . . . . . . . Ally Attacks 95 | . . . . . . 36 34 . 8 . . 17 . . . . . . . . Total Damage 1675 | . . . . . . 335 869 . 167 . . 304 . . . . . . . . Kills 13 | . . . . . . 4 6 . 1 . . 2 . . . . . . . . Allies Corrupted . | . . . . . . . . . . . . . . . . . . . . . Allies Melted 1 | . . . . . . . . . . . . . . . . . . . . 1 X0-1V1 Amusement Gains 321 | . 11 . . . 5 5 40 15 . . 95 . 20 . . 25 . 55 . 50 Good Acts 64 | . 1 . . . 1 1 7 1 7 8 3 4 . 9 6 . 8 1 1 6 Bad Acts 35 | . . . . 1 . 4 6 1 5 . . 2 1 . 1 . 3 5 3 3 Intel | -11 -10 -10 -10 -9 -8 -8 -7 -6 -6 -6 -6 -5 -5 -5 -5 -5 -4 -4 -4 -4 ------- Run | Yrd Mat Min Exi Min Mat Gar Fac Fac Low Low Zio Pro Fac Upp Upp Zhi Pro Fac Upp Upp Active Infowar (turns) 593 | . 223 . . . . . . 118 . . . . . . . . . 252 . . Terrain 252 | . . . . . . . . . . . . . . . . . . 252 . . Structural 159 | . 159 . . . . . . . . . . . . . . . . . . . Seismic 182 | . 64 . . . . . . 118 . . . . . . . . . . . . Robot Analysis Total 4 | . . . . . . . . . . . . . . . . 4 . . . . Derelict Logs Recovered 6 | . . 1 . . . . . . . . . . . 2 . . 1 . 2 . Drone Launches . | . . . . . . . . . . . . . . . . . . . . . Drone Recoveries . | . . . . . . . . . . . . . . . . . . . . . Exploration | -11 -10 -10 -10 -9 -8 -8 -7 -6 -6 -6 -6 -5 -5 -5 -5 -5 -4 -4 -4 -4 ------------- Run | Yrd Mat Min Exi Min Mat Gar Fac Fac Low Low Zio Pro Fac Upp Upp Zhi Pro Fac Upp Upp Turns Passed 11224 | 125 1339 389 428 495 86 727 1539 249 608 533 126 513 600 937 477 208 681 565 395 204 Spaces Moved 6305 | 59 516 153 247 201 45 324 824 175 469 505 114 287 245 460 333 159 451 240 293 205 Core 134 | 3 . . . . . . . . . . . . . . . . . . . 131 Treads 2122 | 56 345 153 247 201 45 324 703 . . . . . . . . . . 45 . 3 Legs 1978 | . 43 . . . . . . . . . . 99 245 460 333 159 451 188 . . Wheels 2071 | . 128 . . . . . 121 175 469 505 114 188 . . . . . 7 293 71 Hover . | . . . . . . . . . . . . . . . . . . . . . Flight . | . . . . . . . . . . . . . . . . . . . . . Fastest Speed 50 | 50 110 240 160 240 160 160 85 85 85 95 110 110 190 190 120 120 120 90 90 50 Average Speed 148 | 156 211 240 172 240 160 160 158 85 100 103 110 137 190 190 126 120 120 136 114 86 Slowest Speed 320 | 160 320 240 240 240 160 160 200 85 135 110 110 190 190 190 190 190 120 260 150 260 Overloaded Moves . | . . . . . . . . . . . . . . . . . . . . . Propulsion Burnouts . | . . . . . . . . . . . . . . . . . . . . . Robots Hopped . | . . . . . . . . . . . . . . . . . . . . . Potential Cave-ins . | . . . . . . . . . . . . . . . . . . . . . Cave-ins Triggered . | . . . . . . . . . . . . . . . . . . . . . Teleports 1 | . . . . . . . . . . . . . . . . . 1 . . . Exploration Rate (%) 41 | 3 84 44 69 68 8 46 28 7 63 69 12 48 6 75 49 60 54 6 45 36 Regions Visited 20 Branch Regions 13 Pre-discovered Areas 4 | . . 1 . 1 . . . . . . . . . . . . 1 . 1 . Known Exits Taken 5 | . . . . . 1 . . 1 . . . 1 . 1 1 . . . . . Unknown Exits Taken 14 | 1 1 1 1 1 . . 1 . 1 1 1 . 1 . . 1 1 1 1 . Scrap Searched 14 | . . . . 1 . . . . 2 1 . 2 . . 3 . 1 . 2 2 Spaces Dug 1 | . . . . . . . . . . . . . . . . . . 1 . . Terrain Destroyed 331 | . . . . . . 59 96 52 46 . . 44 . . . . 18 15 . 1 Melee 1 | . . . . . . . . . . . . . . . . . . 1 . . Projectile 39 | . . . . . . . 8 5 3 . . 5 . . . . 3 14 . 1 AOE 291 | . . . . . . 59 88 47 43 . . 39 . . . . 15 . . . Terrain Rammed . | . . . . . . . . . . . . . . . . . . . . . Walls Destroyed . | . . . . . . . . . . . . . . . . . . . . . Machines Disabled . | . . . . . . . . . . . . . . . . . . . . . Actions | -11 -10 -10 -10 -9 -8 -8 -7 -6 -6 -6 -6 -5 -5 -5 -5 -5 -4 -4 -4 -4 --------- Run | Yrd Mat Min Exi Min Mat Gar Fac Fac Low Low Zio Pro Fac Upp Upp Zhi Pro Fac Upp Upp Total 7440 | 78 671 167 253 212 55 457 966 234 567 507 115 355 329 491 360 175 515 375 327 231 Wait 221 | . 30 . . . . 1 22 19 14 . . 17 36 4 2 . 13 51 12 . Move 6286 | 58 515 152 246 200 45 323 823 174 468 504 113 286 244 459 332 158 450 239 292 205 Hop . | . . . . . . . . . . . . . . . . . . . . . Pick Up 144 | 2 27 4 1 4 4 10 31 5 14 . 1 4 14 . 5 3 4 6 3 2 Fast Attach 55 | 6 10 . . . 1 2 3 . . . . 1 . . . 4 1 18 7 2 Attach 75 | . 1 1 . 2 2 1 10 10 6 . . 7 4 2 3 2 8 10 1 5 Detach 27 | . 6 . 1 . 1 2 2 3 . . . 1 . . . 4 1 2 1 3 Swap 21 | . 4 . . . . 6 1 1 1 . . 2 2 1 1 1 1 . . . Drop 65 | . 16 3 5 3 . 2 8 1 4 . 1 1 2 4 2 2 3 2 . 6 Fire 353 | 4 52 7 . . 2 36 50 20 18 3 . 23 26 18 14 1 32 46 . 1 Melee 12 | . . . . . . . . . . . . . . . . . . 1 11 . Ram 7 | . . . . . . . 3 1 1 . . . . . . . . . . 2 Kick . | . . . . . . . . . . . . . . . . . . . . . Crush 41 | 8 10 . . 3 . 3 12 . . . . . . . . . . . . 5 Escape Stasis . | . . . . . . . . . . . . . . . . . . . . . Rewire 123 | . . . . . . 71 1 . 38 . . 13 . . . . . . . . Trap 10 | . . . . . . . . . 3 . . . 1 3 1 . 2 . . . Miscellaneous . | . . . . . . . . . . . . . . . . . . . . . Route ------- -11/Scrapyard -10/Materials (discovered 5 exits: [*Mat x2] / [*Min x2] / [*Sub]) -10/Mines -10/Exiles -9/Mines -8/Materials -8/Garrison -7/Factory -6/Factory (discovered 2 exits: *Low x2) -6/Lower Caves -6/Lower Caves (discovered 2 exits: Fac / [*Zio]) -6/Zion -5/Proximity Caves -5/Factory -5/Upper Caves -5/Upper Caves -5/Zhirov -4/Proximity Caves -4/Factory -4/Upper Caves -4/Upper Caves History --------- Turn | Location | Event 10 | -11/Scrapyard | Discovered new exit (range 16) 126 | -11/Scrapyard | Entered Materials 252 | -10/Materials | Discovered new exit (range 15) 303 | -10/Materials | Build established: Mutant 684 | -10/Materials | Discovered new exit (range 10) 684 | -10/Materials | Discovered new exit (range 7) 1116 | -10/Materials | Discovered new exit (range 14) 1344 | -10/Materials | Discovered new exit (range 11) 1414 | -10/Materials | Prayed at D.C.S.S. Altar Unit 1418 | -10/Materials | Core integrity restored by X0-1V1 (+37) 1465 | -10/Materials | Entered Mines 1517 | -10/Mines | Met a Derelict bent on vengeance 1518 | -10/Mines | Learned location of Zion (-6) 1679 | -10/Mines | Found a damaged Exp. Sensor Array with a note attached 1844 | -10/Mines | Deemed a non-threat by the Exiles lab entrance 1844 | -10/Mines | Discovered new exit (range 5) 1854 | -10/Mines | Entered Exiles 1912 | -10/Exiles | Met 8R-AWN 1952 | -10/Exiles | Met EX-HEX 1997 | -10/Exiles | Met EX-BIN 2016 | -10/Exiles | Aligned with FarCom system 2018 | -10/Exiles | Given EX-Vault access code 2054 | -10/Exiles | Opened EX-Vault 2069 | -10/Exiles | Found Lightpack 2.0 2100 | -10/Exiles | Warned to stay clear of 0b10 Research branches 2146 | -10/Exiles | Met EX-DEC 2270 | -10/Exiles | Discovered new exit (range 10) 2282 | -10/Exiles | Left Exiles lab with Lightpack 2.0 2282 | -10/Exiles | Entered Mines 2385 | -9/Mines | Received a Rocket Launcher from a helpful Derelict 2533 | -9/Mines | Found a Scrap Suit stashed away for nefarious purposes 2538 | -9/Mines | Found Scrap Suit 2734 | -9/Mines | Learned location of Storage (-8) 2751 | -9/Mines | Discovered new exit (range 12) 2777 | -9/Mines | Entered Materials 2777 | -8/Materials | Evolved 4 slots: Utility x3, Weapon x1 2863 | -8/Materials | Identified exit to Garrison 2863 | -8/Materials | Entered Garrison 2875 | -8/Garrison | Triggered checkpoint 2953 | -8/Garrison | Triggered checkpoint 2997 | -8/Garrison | Triggered checkpoint 3065 | -8/Garrison | Build established: Hauler-Skirmisher 3138 | -8/Garrison | X0-1V1 rewrote Trooper 3a IFF filter 3181 | -8/Garrison | X0-1V1 activates XOMVISION 3333 | -8/Garrison | Triggered checkpoint 3337 | -8/Garrison | Triggered checkpoint 3390 | -8/Garrison | Lost 6 allies 3490 | -8/Garrison | Discovered new exit (range 14) 3566 | -8/Garrison | Installed Relay Interface Framework 3590 | -8/Garrison | Entered Factory 3590 | -7/Factory | Evolved 2 slots: Utility x2 3708 | -7/Factory | X0-1V1 mutated your Utility slot to Weapon slot 3771 | -7/Factory | X0-1V1 activates XOMVISION 4039 | -7/Factory | X0-1V1 sent allied H-71 Marshal (x1) 4318 | -7/Factory | X0-1V1 sent you to a vault 4503 | -7/Factory | Lost 3 allies 4540 | -7/Factory | Heat dissipation permanently improved by X0-1V1 (+15; -75 max core) 4625 | -7/Factory | X0-1V1 added 0b10 threat records associated with you (minor) 4986 | -7/Factory | X0-1V1 turns hostiles against one another 5038 | -7/Factory | Lost 6 parts (2p2n2w) 5080 | -7/Factory | Discovered new exit (range 16) 5096 | -7/Factory | Core integrity restored by X0-1V1 (+118) 5129 | -7/Factory | Entered another Factory area 5129 | -6/Factory | Evolved 2 slots: Utility x2 5154 | -6/Factory | Sight range permanently improved by X0-1V1 (+1; -150 max core) 5181 | -6/Factory | Garrison activated, responded to threat 5200 | -6/Factory | Identified exit to Lower Caves 5316 | -6/Factory | Lost 5 parts (2u3w) 5378 | -6/Factory | Entered Lower Caves 5404 | -6/Lower Caves | X0-1V1 sent you into danger 5561 | -6/Lower Caves | Melee accuracy permanently improved by X0-1V1 (+8%; -80 max core) 5623 | -6/Lower Caves | Attracted the attention of an 0b10 outpost 5681 | -6/Lower Caves | Lost 5 parts (1n4u) 5704 | -6/Lower Caves | Build established: Hauler-Tank 5795 | -6/Lower Caves | Spotted B-75 Beast 5795 | -6/Lower Caves | X0-1V1 sent you into danger 5854 | -6/Lower Caves | Expanded RIF knowledge: Patrol Navigation 5876 | -6/Lower Caves | Encountered a Warlord checkpoint 5982 | -6/Lower Caves | Discovered new exit (range 4) 5986 | -6/Lower Caves | Entered another Lower Caves area 5986 | -6/Lower Caves | Accompanied by 1 ally 6130 | -6/Lower Caves | X0-1V1 activates XOMVISION 6346 | -6/Lower Caves | Identified exit to Factory 6346 | -6/Lower Caves | X0-1V1 revealed exit location to -5/Factory 6475 | -6/Lower Caves | Discovered new exit (range 8) 6519 | -6/Lower Caves | Entered Zion 6584 | -6/Zion | Found CR-A16's Pointy Stick 6611 | -6/Zion | RIF detected upon attempting to enter Zion 6611 | -6/Zion | Attacked by Zionites 6611 | -6/Zion | Spotted NX-J45(B) 6611 | -6/Zion | Spotted 0Q-K9Z(B) 6628 | -6/Zion | X0-1V1 downgraded hostiles (x1) 6635 | -6/Zion | Discovered new exit (range 10) 6645 | -6/Zion | Entered Proximity Caves 6717 | -5/Proximity Caves | Attracted the attention of an 0b10 outpost 6727 | -5/Proximity Caves | X0-1V1 activates XOMVISION 6761 | -5/Proximity Caves | Destroyed 7 combat bots 6911 | -5/Proximity Caves | X0-1V1 sent you into danger 6935 | -5/Proximity Caves | Weapon slot count temporarily expanded by X0-1V1 (+1) 6965 | -5/Proximity Caves | Lost 5 parts (1p2n2u) 7128 | -5/Proximity Caves | Discovered exit to Factory (range 17) 7158 | -5/Proximity Caves | Entered Factory 7158 | -5/Factory | Evolved 2 slots: Propulsion x1, Weapon x1 7596 | -5/Factory | X0-1V1 mutated your Weapon slot to Power slot 7678 | -5/Factory | Discovered new exit (range 12) 7714 | -5/Factory | Build established: Hauler-Skirmisher 7758 | -5/Factory | Entered Upper Caves 7818 | -5/Upper Caves | X0-1V1 activates XOMVISION 7862 | -5/Upper Caves | Encountered a Warlord checkpoint 7962 | -5/Upper Caves | Identified exit to Upper Caves 8071 | -5/Upper Caves | Build established: Hauler-Tank 8343 | -5/Upper Caves | X0-1V1 whisked you away to safety 8370 | -5/Upper Caves | Learned Factory trap positions 8695 | -5/Upper Caves | Entered another Upper Caves area 8883 | -5/Upper Caves | Attracted the attention of an 0b10 checkpoint 8906 | -5/Upper Caves | Identified exit to Zhirov 8906 | -5/Upper Caves | X0-1V1 revealed exit location to -5/Zhirov 8954 | -5/Upper Caves | Lost 3 parts (1p2w) 9172 | -5/Upper Caves | Entered Zhirov 9172 | -5/Zhirov | Discovered new exit (range 3) 9194 | -5/Zhirov | Met Zhirov 9228 | -5/Zhirov | Zhirov requested help retrieving the SGEMP Prototype 9246 | -5/Zhirov | Found Alien Artifact 9246 | -5/Zhirov | Identified Integrated Reactor 9246 | -5/Zhirov | Installed Integrated Reactor, increased core energy generation (+10) 9262 | -5/Zhirov | Found Alien Artifact 9369 | -5/Zhirov | Attacked by Zhirov 9380 | -5/Zhirov | Entered Proximity Caves 9465 | -4/Proximity Caves | Lost 4 parts (1u3w) 9514 | -4/Proximity Caves | Derelict sapper outpost attacked 9574 | -4/Proximity Caves | Identified Transdimensional Reconstructor 9574 | -4/Proximity Caves | Warped through subspace 9697 | -4/Proximity Caves | X0-1V1 downgraded hostiles (x2) 9738 | -4/Proximity Caves | Lost 3 parts (1p1u1w) 10055 | -4/Proximity Caves | Learned location of Armory (-4) 10055 | -4/Proximity Caves | Discovered new exit (range 6) 10061 | -4/Proximity Caves | Entered Factory 10061 | -4/Factory | Evolved 2 slots: Propulsion x1, Utility x1 10062 | -4/Factory | Loaded intel: 129 trap records 10111 | -4/Factory | X0-1V1 announced a LAN party 10193 | -4/Factory | Quantum Rifle reconfigured into Item Mimic 10323 | -4/Factory | Lost 14 parts (1p3n6u4w) 10409 | -4/Factory | Core integrity fell below 50% 10440 | -4/Factory | Lost 4 parts (1n2u1w) 10482 | -4/Factory | Spotted B-86 Titan 10531 | -4/Factory | X0-1V1 activates XOMVISION 10546 | -4/Factory | Fabricated Huge Storage Unit (x1) 10611 | -4/Factory | Discovered new exit (range 7) 10626 | -4/Factory | Entered Upper Caves 10645 | -4/Upper Caves | Entered an active Warlord outpost 10654 | -4/Upper Caves | Lost 7 parts (2p1n2u2w) 10663 | -4/Upper Caves | Learned Research trap positions 10663 | -4/Upper Caves | Learned Extension trap positions 10663 | -4/Upper Caves | Learned Research security intel 10663 | -4/Upper Caves | Learned Extension garrison access intel 10724 | -4/Upper Caves | Encountered a Warlord checkpoint 10805 | -4/Upper Caves | Core integrity fell below 20% 10995 | -4/Upper Caves | Learned Research emergency access door positions 11012 | -4/Upper Caves | Attracted the attention of an 0b10 checkpoint 11015 | -4/Upper Caves | Discovered new exit (range 5) 11021 | -4/Upper Caves | Entered another Upper Caves area 11045 | -4/Upper Caves | Core integrity restored by X0-1V1 (+135) 11063 | -4/Upper Caves | Encountered a Warlord checkpoint 11108 | -4/Upper Caves | Attracted the attention of an 0b10 outpost 11123 | -4/Upper Caves | Build established: Scavenger-Mutant 11147 | -4/Upper Caves | Lost 3 parts (1n2w) 11165 | -4/Upper Caves | Lost 3 allies 11170 | -4/Upper Caves | X0-1V1 mutated your Propulsion slot to Weapon slot 11225 | -4/Upper Caves | Destroyed by S-27 Virus with Autogun Last Messages --------------- 11213_ Penetrated by Slug. 11213_ Spk. Medium Treads destroyed. 11213_ Imp. Targeting Computer destroyed. 11213_ X0-1V1 makes it rain matter. 11214_ Penetrated by Slug. 11214_ Slug penetrates Wall. 11216_ Connecting with WAR.Sys... 11216_ Current location identified: Upper Caves >>Open Door Sealed Heavy Doors opened. 11217_ Acquired Adv. Reaction Control System. 11218_ Dropped Lgt. Ion Engine. 11219_ Discarded X0-1V1's Piety Tracker. 11220_ Mak. System Shield destroyed. 11220_ Slammed into S-27 Virus. 11223_ Penetrated by Slug. 11223_ Slug penetrates Wall. 11223_ Slug penetrates H-77 Assassin. 11224_ Slug penetrates S-27 Virus. 11225_ X0-1V1 giggles madly! Map ----- +----------------------------------------------------+ | ?????????????????????????????????????????????????? | | ?????????????????????????????????????????????????? | | ?????????????????????????????????????????????????? | | ?????????????????????????????????????????????????? | | ?????????????????????????????????????????????????? | | ?????????????????????????????????????????????????? | | ?????????????????????????????????????????????????? | | ?????????????????????????????????????????????????? | | ?????????????????????????????????????????????????? | | ?????????????????????????????????????????????????? | | ?????????????????????????????????????????????????? | | ?????????????????????????????????????????????????? | | ?????????????????????????????????????????????????? | | ?????????????????????????????????????????????????? | | ???????????????????????????????#?????????????????? | | ?????????????????????????????? #?????????????????? | | ?????????????????????????????? ##?##?????????????? | | ?????????????????????????????? ## ##????????????? | | ?????????????????????????????? #????????????? | | ?????????????????????????????? ##???????????? | | ?????????????????????????????? ##??????????? | | ?????????????????????????????? #??????????? | | ????????????????????????????## #??????????? | | ?????????????????????????#### % #??????????? | | ?????????????????####??### h #?????????? | | ????????????????##![#?## @ h #???????????????? | | ????????????????# *[### ##??????##??????? | | ????????????????# ### s % #????? #??????? | | ????????????????# %# % % % #????? #??????? | | ????????????????#X##### % ##???? ##?????? | | ????????????????###???# %g ####?? ##????? | | ??????????????????????#% gl ### ???? | | ??????????????????????# % g ???? | | ??????????????????????## % #???? | | ???????????????????????# % ##?????????? | | ???????????????????????# #??????????? | | ???????????????????????## #??????????? | | ????????????????????????## % ####???????? | | ?????????????????????????### #???????? | | ???????????????????????????## #####???? | | ????????????????????????????## ## #???? | | ?????????????????????????????# #### #???? | | ?????????????????????????????# #?###### #???? | | ???????????????############### #??????# ##### | | ???????????????# #??????# | | ???????????????# % #??????####### | | ???????????????# ! ## #??????? | | ???????????????# """" """" ### #?????? | | ???????????????# """" """" #??## #?????? | | ???????????????# """" """" ##??? ### ##?????? | +----------------------------------------------------+ Best States ------------- Heat Dissipation 96 Energy Generation 58 Energy Capacity 1545 Matter Stores 900 Matter Capacity 900 Sight Range 21 Terrain Scan Range 20 Terrain Scan Density 10 Corruption Containment 12 Armor Coverage 450 Resistance: KI 30 Propulsion Shielding 33 Phase Shifting 10 Evasion (%) 65 Targeting Accuracy 12 Recoil Reduction 8 Defensive Hacking 11 Item Schematics ----------------- Huge Storage Unit | -10/Materials | Hacked Imp. Medium Armor Plating | -6/Factory | Scanalyzed Assault Drone Bay | -5/Zhirov | Free Exp. Heat Sink | -5/Zhirov | Free Exp. Optical Array | -5/Zhirov | Free Imp. Arc Thrower | -5/Zhirov | Free Robot Schematics ------------------ None Fabricated ------------ Huge Storage Unit | x1 | -4/Factory Repaired ---------- Nothing Studied --------- Imp. Treads | -7/Factory | Hacked Wheel | -7/Factory | Hacked Alien Tech Used ----------------- Integrated Reactor Transdimensional Reconstructor Achievements -------------- I Know It's In Here Somewhere Challenges ------------ None Game ------ Seed TowerMassLoader Manual? 0 Play Time 01:47:22 Cumulative 184.5 hours Start 2026.07.11 @ 14:33:44 End 2026.07.11 @ 16:28:02 Sessions 7 Manual Loads 0 Difficulty Rogue Special Mode None Game No. 249 Rogue 249 Adventurer 0 Explorer 0 Win Type - Total 3 Types 3/0/0/0/0/0/0/0/0/0 Lore% 78 Gallery% 57 Achievement% 44 Wizard Run 0 Options --------- Layout 0 ASCII 0 Keyboard 0 Movement Numpad Keybinds 0 Fullscreen 0 Font 16/Terminus Map View 76x50 Zoom Use 0% Tactical HUD 1 Map Filters NONE Filters NONE Steam 1 RUN: 769fac65-bfb8-46c3-abf2-d406b53aa7c8